fUSD/lending_fUSD_20250814
["ID","MTS","AMOUNT","RATE_DAILY","PERIOD"]
[379158093,1755168673345,-151.0,0.00035753,7]
[379158094,1755168673355,-720.98,0.00035753,12]
[379158095,1755168673364,-400.0,0.00035753,12]
[379158096,1755168673374,-400.0,0.00035753,12]
[379158097,1755168673383,-1071.93,0.00035753,12]
[379158098,1755168673392,-921.82,0.00035753,12]
[379158099,1755168673402,-400.0,0.00035753,12]
[379158100,1755168673411,-856.42,0.00035753,12]
[379158101,1755168673420,-400.0,0.00035753,2]
[379158102,1755168673430,-400.0,0.00035753,12]
[379158103,1755168673439,-400.0,0.00035753,12]
[379158104,1755168673448,-400.0,0.00035753,12]
[379158105,1755168673457,-400.0,0.00035753,12]
[379158106,1755168673467,-400.0,0.00035753,12]
[379158107,1755168673476,-583.01,0.00035753,12]
[379158108,1755168673486,-657.47,0.00035753,12]
[379158109,1755168673495,-400.0,0.00035753,12]
[379158110,1755168673504,-1633.14,0.00035753,12]
[379158111,1755168673513,-400.0,0.00035753,12]
[379158112,1755168673522,-2220.91,0.00035753,12]
[379158113,1755168673535,-400.0,0.00035753,12]
[379158114,1755168673544,-1634.48,0.00035753,12]
[379158115,1755168673553,-151.0,0.00035753,7]
[379158116,1755168673563,-1325.54,0.00035753,12]
[379158117,1755168673572,-400.0,0.00035753,12]
[379158118,1755168673582,-151.0,0.00035753,7]
[379158119,1755168673591,-465.21078133,0.00035753,12]
[379158120,1755168673600,-1562.09,0.00035753,12]
[379158121,1755168673610,-400.0,0.00035753,12]
[379158122,1755168673620,-400.0,0.00035753,12]
[379158123,1755168673629,-400.0,0.00035753,12]
[379158124,1755168673638,-2051.54,0.00035753,12]
[379158125,1755168673647,-1435.6,0.00035753,12]
[379158126,1755168673657,-408.72,0.00035753,12]
[379158127,1755168673667,-1727.56,0.00035753,12]
[379158128,1755168673676,-400.0,0.00035753,12]
[379158129,1755168673686,-400.0,0.00035753,12]
[379158130,1755168673695,-400.0,0.00035753,2]
[379158131,1755168673704,-662.85,0.00035753,12]
[379158132,1755168673714,-564.835437,0.00035753,7]
[379158133,1755168673723,-400.0,0.00035753,12]
[379158134,1755168673732,-564.835437,0.00035753,7]
[379158135,1755168673742,-400.0,0.00035753,12]
[379158136,1755168673751,-404.19,0.00035753,12]
[379158137,1755168673761,-849.91,0.00035753,12]
[379158138,1755168673772,-1199.28,0.00035753,12]
[379158139,1755168673785,-400.0,0.00035753,12]
[379158140,1755168673795,-400.0,0.00035753,12]
[379158141,1755168673805,-400.0,0.00035753,12]
[379158142,1755168673815,-400.0,0.00035753,12]
[379158143,1755168673824,-400.0,0.00035753,12]
[379158144,1755168673833,-400.0,0.00035753,12]
[379158145,1755168673842,-2277.36,0.00035753,12]
[379158146,1755168673853,-151.0,0.00035753,7]
[379158147,1755168673863,-151.0,0.00035753,7]
[379158148,1755168673872,-583.52,0.00035753,12]
[379158149,1755168673881,-400.0,0.00035753,12]
[379158150,1755168673891,-400.0,0.00035753,12]
[379158151,1755168673900,-400.0,0.00035753,12]
[379158152,1755168673910,-400.0,0.00035753,12]
[379158153,1755168673919,-736.78,0.00035753,12]
[379158154,1755168673929,-151.0,0.00035753,7]
[379158155,1755168673939,-151.0,0.00035753,7]
[379158156,1755168673948,-1021.89,0.00035753,12]
[379158157,1755168673957,-400.0,0.00035753,12]
[379158158,1755168673967,-400.0,0.00035753,12]
[379158159,1755168673976,-400.0,0.00035753,12]
[379158160,1755168673986,-976.3,0.00035753,12]
[379158161,1755168673995,-151.0,0.00035753,7]
[379158162,1755168674005,-151.0,0.00035753,7]
[379158163,1755168674014,-400.0,0.00035753,12]
[379158164,1755168674023,-877.89,0.00035753,12]
[379158165,1755168674036,-429.16,0.00035753,12]
[379158166,1755168674048,-400.0,0.00035753,12]
[379158167,1755168674057,-400.0,0.00035753,12]
[379158168,1755168674066,-1168.69,0.00035753,12]
[379158169,1755168674076,-2251.22,0.00035753,12]
[379158170,1755168674086,-1529.8,0.00035753,12]
[379158171,1755168674095,-2589.5,0.00035753,12]
[379158172,1755168674105,-400.0,0.00035753,12]
[379158173,1755168674114,-1119.79,0.00035753,12]
[379158174,1755168674126,-1121.11,0.00035753,12]
[379158175,1755168674135,-1092.58,0.00035753,12]
[379158176,1755168674144,-400.0,0.00035753,12]
[379158177,1755168674154,-400.0,0.00035753,12]
[379158178,1755168674163,-480.42,0.00035753,12]
[379158179,1755168674172,-400.0,0.00035753,12]
[379158180,1755168674181,-400.0,0.00035753,12]
[379158181,1755168674190,-923.18,0.00035753,12]
[379158182,1755168674199,-400.0,0.00035753,12]
[379158183,1755168674211,-893.94,0.00035753,12]
[379158184,1755168674220,-400.0,0.00035753,12]
[379158185,1755168674229,-2358.09,0.00035753,12]
[379158186,1755168674238,-664.44,0.00035753,12]
[379158187,1755168674247,-719.26,0.00035753,12]
[379158188,1755168674256,-400.0,0.00035753,12]
[379158189,1755168674265,-2898.41,0.00035753,12]
[379158190,1755168674274,-400.0,0.00035753,12]
[379158191,1755168674286,-400.0,0.00035753,12]
[379158192,1755168674295,-400.0,0.00035753,12]
[379158193,1755168674304,-400.0,0.00035753,12]
[379158194,1755168674313,-1022.47536599,0.00035753,12]
[379158195,1755168674323,-400.0,0.00035753,12]
[379158196,1755168674332,-400.0,0.00035753,12]
[379158197,1755168674341,-400.0,0.00035753,12]
[379158198,1755168674350,-1594.4,0.00035753,12]
[379158199,1755168674359,-400.0,0.00035753,12]
[379158200,1755168674368,-587.79,0.00035753,12]
[379158201,1755168674377,-1150.3,0.00035753,12]
[379158202,1755168674386,-445.35,0.00035753,12]
[379158203,1755168674395,-400.0,0.00035753,12]
[379158204,1755168674405,-400.0,0.00035753,12]
[379158205,1755168674414,-492.08,0.00035753,12]
[379158206,1755168674423,-400.0,0.00035753,12]
[379158207,1755168674432,-2581.13,0.00035753,12]
[379158208,1755168674441,-400.0,0.00035753,12]
[379158209,1755168674451,-697.49,0.00035753,12]
[379158210,1755168674459,-1051.67,0.00035753,12]
[379158211,1755168674468,-1105.61,0.00035753,12]
[379158212,1755168674478,-407.17,0.00035753,12]
[379158213,1755168674487,-277.674106,0.00035753,7]
[379158214,1755168674495,-277.674106,0.00035753,7]
[379158215,1755168674504,-400.0,0.00035753,12]
[379158216,1755168674514,-277.674106,0.00035753,7]
[379158217,1755168674523,-277.674106,0.00035753,7]
[379158218,1755168674535,-400.0,0.00035753,12]
[379158219,1755168674544,-952.34,0.00035753,12]
[379158220,1755168674554,-433.16,0.00035753,12]
[379158221,1755168674563,-400.0,0.00035753,12]
[379158222,1755168674572,-400.0,0.00035753,12]
[379158223,1755168674581,-400.0,0.00035753,12]
[379158224,1755168674590,-996.28,0.00035753,12]
[379158225,1755168674599,-300.0,0.00035753,12]
[379158226,1755168674608,-855.94,0.00035753,12]
[379158227,1755168674617,-2061.27,0.00035753,12]
[379158228,1755168674626,-400.0,0.00035753,12]
[379158229,1755168674635,-422.43,0.00035753,12]
[379158230,1755168674644,-2778.27,0.00035753,12]
[379158231,1755168674653,-400.0,0.00035753,12]
[379158232,1755168674662,-400.0,0.00035753,12]
[379158233,1755168674671,-708.9,0.00035753,12]
[379158234,1755168674680,-151.0,0.00035753,7]
[379158235,1755168674689,-400.0,0.00035753,12]
[379158236,1755168674699,-956.49,0.00035753,12]
[379158237,1755168674707,-626.11,0.00035753,12]
[379158238,1755168674717,-400.0,0.00035753,12]
[379158239,1755168674725,-1041.2,0.00035753,12]
[379158240,1755168674734,-1489.41,0.00035753,12]
[379158241,1755168674743,-151.0,0.00035753,7]
[379158242,1755168674752,-400.0,0.00035753,12]
[379158243,1755168674761,-400.0,0.00035753,12]
[379158244,1755168674770,-400.0,0.00035753,12]
[379158245,1755168674781,-400.0,0.00035753,12]
[379158246,1755168674790,-1509.5,0.00035753,12]
[379158247,1755168674799,-2219.45,0.00035753,12]
[379158248,1755168674808,-400.0,0.00035753,12]
[379158249,1755168674817,-905.53,0.00035753,12]
[379158250,1755168674826,-1664.49,0.00035753,12]
[379158251,1755168674835,-400.0,0.00035753,12]
[379158252,1755168674843,-187.491097,0.00035753,7]
[379158253,1755168674852,-187.491097,0.00035753,7]
[379158254,1755168674861,-774.927412,0.00035753,7]
[379158255,1755168674871,-1427.15,0.00035753,12]
[379158256,1755168674880,-774.927412,0.00035753,7]
[379158257,1755168674889,-861.45,0.00035753,12]
[379158258,1755168674898,-693.03,0.00035753,12]
[379158259,1755168674907,-400.0,0.00035753,12]
[379158260,1755168674916,-774.927412,0.00035753,7]
[379158261,1755168674925,-774.927412,0.00035753,7]
[379158262,1755168674935,-400.0,0.00035753,12]
[379158263,1755168674944,-187.491097,0.00035753,7]
[379158264,1755168674953,-887.23,0.00035753,12]
[379158265,1755168674963,-856.52,0.00035753,12]
[379158266,1755168674972,-187.491097,0.00035753,7]
[379158267,1755168674981,-2794.95,0.00035753,12]
[379158268,1755168674990,-400.0,0.00035753,12]
[379158269,1755168674999,-1227.78,0.00035753,12]
[379158270,1755168675008,-400.0,0.00035753,12]
[379158271,1755168675017,-773.14,0.00035753,12]
[379158272,1755168675026,-400.0,0.00035753,12]
[379158273,1755168675039,-400.0,0.00035753,12]
[379158274,1755168675048,-1056.9,0.00035753,12]
[379158275,1755168675057,-400.0,0.00035753,12]
[379158276,1755168675067,-1421.98,0.00035753,12]
[379158277,1755168675077,-1130.39,0.00035753,12]
[379158278,1755168675086,-151.0,0.00035753,7]
[379158279,1755168675095,-155.95134,0.00035753,7]
[379158280,1755168675104,-400.0,0.00035753,12]
[379158281,1755168675113,-400.0,0.00035753,12]
[379158282,1755168675123,-2363.83,0.00035753,12]
[379158283,1755168675134,-463.85288589,0.00035753,12]
[379158284,1755168675143,-1925.61,0.00035753,12]
[379158285,1755168675152,-844.37,0.00035753,12]
[379158286,1755168675161,-1564.61,0.00035753,12]
[379158287,1755168675171,-400.0,0.00035753,12]
[379158288,1755168675180,-202.497212,0.00035753,7]
[379158289,1755168675189,-202.497212,0.00035753,7]
[379158290,1755168675198,-595.39,0.00035753,12]
[379158291,1755168675207,-400.0,0.00035753,12]
[379158292,1755168675216,-400.0,0.00035753,12]
[379158293,1755168675226,-400.0,0.00035753,12]
[379158294,1755168675235,-202.497212,0.00035753,7]
[379158295,1755168675244,-202.497212,0.00035753,7]
[379158296,1755168675253,-400.0,0.00035753,12]
[379158297,1755168675263,-510.18,0.00035753,12]
[379158298,1755168675272,-400.0,0.00035753,12]
[379158299,1755168675287,-427.17,0.00035753,12]
[379158300,1755168675297,-1597.42,0.00035753,12]
[379158301,1755168675306,-615.2,0.00035753,12]
[379158302,1755168675315,-525.741016,0.00035753,7]
[379158303,1755168675324,-1475.98,0.00035753,12]
[379158304,1755168675333,-525.741016,0.00035753,7]
[379158305,1755168675342,-400.0,0.00035753,12]
[379158306,1755168675352,-408.53,0.00035753,12]
[379158307,1755168675361,-525.741016,0.00035753,7]
[379158308,1755168675371,-525.741016,0.00035753,7]
[379158309,1755168675380,-936.47,0.00035753,12]
[379158310,1755168675389,-3111.83,0.00035753,12]
[379158311,1755168675398,-699.984366,0.00035753,7]
[379158312,1755168675407,-400.0,0.00035753,12]
[379158313,1755168675417,-699.984366,0.00035753,7]
[379158314,1755168675427,-1584.33,0.00035753,12]
[379158315,1755168675436,-455.04,0.00035753,12]
[379158316,1755168675446,-400.0,0.00035753,12]
[379158317,1755168675455,-699.984366,0.00035753,7]
[379158318,1755168675465,-699.984366,0.00035753,7]
[379158319,1755168675474,-5081.0,0.00035753,12]
[379158320,1755168675483,-1011.53,0.00035753,12]
[379158321,1755168675492,-1132.02,0.00035753,12]
[379158322,1755168675502,-814.11,0.00035753,12]
[379158323,1755168675511,-400.0,0.00035753,12]
[379158324,1755168675521,-400.0,0.00035753,12]
[379158325,1755168675532,-781.26,0.00035753,12]
[379158326,1755168675541,-1183.5,0.00035753,12]
[379158327,1755168675550,-400.0,0.00035753,12]
[379158328,1755168675559,-400.0,0.00035753,12]
[379158329,1755168675569,-400.0,0.00035753,12]
[379158330,1755168675578,-400.0,0.00035753,12]
[379158331,1755168675588,-555.6,0.00035753,12]
[379158332,1755168675597,-400.0,0.00035753,12]
[379158333,1755168675607,-603.04,0.00035753,12]
[379158334,1755168675616,-467.23,0.00035753,12]
[379158335,1755168675626,-2963.92,0.00035753,12]
[379158336,1755168675635,-400.0,0.00035753,12]
[379158337,1755168675646,-406.5881368,0.00035753,12]
[379158338,1755168675655,-2020.21,0.00035753,12]
[379158339,1755168675665,-927.8,0.00035753,12]
[379158340,1755168675675,-400.0,0.00035753,12]
[379158341,1755168675684,-400.0,0.00035753,12]
[379158342,1755168675694,-400.0,0.00035753,12]
[379158343,1755168675703,-923.91,0.00035753,12]
[379158344,1755168675713,-400.0,0.00035753,12]
[379158345,1755168675723,-417.19,0.00035753,12]
[379158346,1755168675732,-432.06,0.00035753,12]
[379158347,1755168675742,-4823.43,0.00035753,12]
[379158348,1755168675751,-400.0,0.00035753,12]
[379158349,1755168675761,-400.0,0.00035753,12]
[379158350,1755168675771,-640.01,0.00035753,12]
[379158351,1755168675782,-400.0,0.00035753,12]
[379158352,1755168675792,-400.0,0.00035753,12]
[379158353,1755168675801,-1863.99,0.00035753,12]
[379158354,1755168675811,-400.0,0.00035753,12]
[379158355,1755168675820,-4501.07,0.00035753,12]
[379158356,1755168675829,-437.71,0.00035753,12]
[379158357,1755168675839,-840.37,0.00035753,12]
[379158358,1755168675848,-1607.34,0.00035753,12]
[379158359,1755168675859,-400.0,0.00035753,2]
[379158360,1755168675869,-1426.59,0.00035753,12]
[379158361,1755168675879,-400.0,0.00035753,12]
[379158362,1755168675893,-650.13,0.00035753,12]
[379158363,1755168675904,-882.95,0.00035753,12]
[379158364,1755168675913,-2685.83,0.00035753,12]
[379158365,1755168675923,-400.0,0.00035753,12]
[379158366,1755168675933,-400.0,0.00035753,12]
[379158367,1755168675943,-400.0,0.00035753,12]
[379158368,1755168675952,-955.0,0.00035753,12]
[379158369,1755168675962,-400.0,0.00035753,12]
[379158370,1755168675971,-1384.45,0.00035753,12]
[379158371,1755168675983,-400.0,0.00035753,12]
[379158372,1755168675993,-400.0,0.00035753,12]
[379158373,1755168676003,-1102.57,0.00035753,12]
[379158374,1755168676012,-802.03,0.00035753,12]
[379158375,1755168676022,-400.0,0.00035753,12]
[379158376,1755168676034,-741.24,0.00035753,12]
[379158377,1755168676047,-400.0,0.00035753,12]
[379158378,1755168676057,-400.0,0.00035753,12]
[379158379,1755168676066,-870.82,0.00035753,12]
[379158380,1755168676076,-400.0,0.00035753,12]
[379158381,1755168676087,-400.0,0.00035753,12]
[379158382,1755168676097,-3427.46,0.00035753,12]
[379158383,1755168676106,-154.02091792,0.00035753,12]
[379158384,1755168676117,-1027.692148,0.00035753,7]
[379158385,1755168676127,-3490.35,0.00035753,12]
[379158386,1755168676137,-1027.692148,0.00035753,7]
[379158387,1755168676147,-400.0,0.00035753,12]
[379158388,1755168676157,-3994.35,0.00035753,12]
[379158390,1755168676167,-578.35,0.00035753,12]
[379158391,1755168676177,-1252.42,0.00035753,12]
[379158392,1755168676187,-413.68,0.00035753,12]
[379158393,1755168676197,-1092.35,0.00035753,12]
[379158394,1755168676208,-151.0,0.00035753,7]
[379158395,1755168676218,-151.0,0.00035753,7]
[379158396,1755168676228,-1027.692148,0.00035753,7]
[379158397,1755168676239,-1027.692148,0.00035753,7]
[379158398,1755168676249,-400.0,0.00035753,12]
[379158399,1755168676259,-896.37,0.00035753,12]
[379158400,1755168676269,-400.0,0.00035753,12]
[379158401,1755168676282,-922.69,0.00035753,12]
[379158402,1755168676292,-705.61,0.00035753,12]
[379158403,1755168676302,-400.0,0.00035753,12]
[379158404,1755168676312,-413.4950578,0.00035753,12]
[379158405,1755168676322,-500.0,0.00035753,12]
[379158406,1755168676332,-400.0,0.00035753,12]
[379158407,1755168676343,-452.34480595,0.00035753,12]
[379158408,1755168676353,-946.09,0.00035753,12]
[379158409,1755168676363,-1149.99,0.00035753,12]
[379158410,1755168676372,-400.0,0.00035753,12]
[379158411,1755168676382,-434.47,0.00035753,12]
[379158412,1755168676392,-1892.8,0.00035753,12]
[379158413,1755168676402,-400.0,0.00035753,12]
[379158414,1755168676412,-1864.88,0.00035753,12]
[379158415,1755168676421,-423.62,0.00035753,12]
[379158416,1755168676431,-400.0,0.00035753,12]
[379158417,1755168676441,-400.0,0.00035753,12]
[379158418,1755168676450,-400.0,0.00035753,12]
[379158419,1755168676460,-400.0,0.00035753,12]
[379158420,1755168676470,-400.0,0.00035753,12]
[379158421,1755168676480,-478.47,0.00035753,12]
[379158422,1755168676490,-400.0,0.00035753,12]
[379158423,1755168676500,-400.0,0.00035753,12]
[379158424,1755168676509,-224.5991772,0.00035753,12]
[379158425,1755168676519,-400.0,0.00035753,12]
[379158426,1755168676530,-400.0,0.00035753,12]
[379158427,1755168676540,-5312.8,0.00035753,12]
[379158428,1755168676550,-6051.32,0.00035753,12]
[379158429,1755168676561,-619.04,0.00035753,12]
[379158430,1755168676571,-400.0,0.00035753,12]
[379158431,1755168676582,-1964.97,0.00035753,12]
[379158432,1755168676591,-188.16334539,0.00035753,12]
[379158433,1755168676601,-411.97227368,0.00035753,12]
[379158434,1755168676611,-160.182481,0.00035753,7]
[379158435,1755168676620,-757.14,0.00035753,12]
[379158436,1755168676631,-400.0,0.00035753,12]
[379158437,1755168676641,-400.0,0.00035753,12]
[379158438,1755168676651,-401.29758067,0.00035753,12]
[379158439,1755168676661,-573.51,0.00035753,12]
[379158440,1755168676671,-400.0,0.00035753,12]
[379158441,1755168676681,-160.182481,0.00035753,7]
[379158442,1755168676691,-400.0,0.00035753,12]
[379158443,1755168676701,-407.42,0.00035753,12]
[379158444,1755168676711,-400.0,0.00035753,12]
[379158445,1755168676721,-400.0,0.00035753,12]
[379158446,1755168676730,-400.0,0.00035753,12]
[379158447,1755168676740,-1501.78,0.00035753,12]
[379158448,1755168676750,-400.0,0.00035753,12]
[379158449,1755168676761,-405.87,0.00035753,12]
[379158450,1755168676770,-400.0,0.00035753,12]
[379158451,1755168676780,-1732.03,0.00035753,12]
[379158452,1755168676790,-1161.25,0.00035753,12]
[379158453,1755168676800,-1675.18,0.00035753,12]
[379158454,1755168676810,-270.74756553,0.00035753,12]
[379158455,1755168676819,-834.5,0.00035753,12]
[379158456,1755168676829,-400.0,0.00035753,12]
[379158457,1755168676839,-187.648353,0.00035753,7]
[379158458,1755168676849,-400.0,0.00035753,12]
[379158459,1755168676859,-187.648353,0.00035753,7]
[379158460,1755168676868,-400.0,0.00035753,12]
[379158461,1755168676881,-415.99,0.00035753,12]
[379158462,1755168676891,-400.0,0.00035753,12]
[379158463,1755168676901,-400.0,0.00035753,12]
[379158464,1755168676910,-400.0,0.00035753,12]
[379158465,1755168676919,-187.648353,0.00035753,7]
[379158466,1755168676929,-187.648353,0.00035753,7]
[379158467,1755168676939,-400.0,0.00035753,12]
[379158469,1755168676949,-2611.94,0.00035753,12]
[379158470,1755168676958,-400.0,0.00035753,12]
[379158472,1755168676968,-401.94114031,0.00035753,12]
[379158473,1755168676978,-607.8,0.00035753,12]
[379158474,1755168676988,-915.91,0.00035753,12]
[379158475,1755168676999,-400.0,0.00035753,12]
[379158476,1755168677008,-1135.25,0.00035753,12]
[379158477,1755168677018,-3249.86,0.00035753,12]
[379158478,1755168677028,-2748.79,0.00035753,12]
[379158479,1755168677041,-400.0,0.00035753,12]
[379158480,1755168677051,-1288.03,0.00035753,12]
[379158481,1755168677061,-3719.19,0.00035753,12]
[379158482,1755168677070,-4369.43,0.00035753,12]
[379158483,1755168677081,-400.0,0.00035753,12]
[379158484,1755168677091,-400.0,0.00035753,12]
[379158485,1755168677101,-261.144667,0.00035753,7]
[379158486,1755168677110,-633.56,0.00035753,12]
[379158487,1755168677122,-261.144667,0.00035753,7]
[379158488,1755168677132,-654.53,0.00035753,12]
[379158489,1755168677142,-400.0,0.00035753,12]
[379158490,1755168677152,-631.15,0.00035753,12]
[379158491,1755168677162,-261.144667,0.00035753,7]
[379158492,1755168677172,-261.144667,0.00035753,7]
[379158493,1755168677182,-400.0,0.00035753,12]
[379158494,1755168677192,-1125.95,0.00035753,12]
[379158495,1755168677202,-400.0,0.00035753,12]
[379158496,1755168677212,-400.0,0.00035753,12]
[379158497,1755168677222,-3171.67,0.00035753,12]
[379158498,1755168677231,-438.2,0.00035753,12]
[379158499,1755168677241,-1048.27,0.00035753,12]
[379158500,1755168677251,-500.0,0.00035753,10]
[379158501,1755168677261,-863.31,0.00035753,12]
[379158502,1755168677271,-400.0,0.00035753,12]
[379158503,1755168677283,-400.0,0.00035753,12]
[379158504,1755168677293,-400.0,0.00035753,12]
[379158505,1755168677303,-400.0,0.00035753,12]
[379158506,1755168677313,-6221.13,0.00035753,12]
[379158507,1755168677323,-776.16,0.00035753,12]
[379158508,1755168677333,-1017.46,0.00035753,12]
[379158509,1755168677343,-400.0,0.00035753,12]
[379158510,1755168677355,-400.0,0.00035753,12]
[379158511,1755168677364,-400.0,0.00035753,12]
[379158512,1755168677374,-400.0,0.00035753,12]
[379158513,1755168677384,-655.92,0.00035753,12]
[379158514,1755168677394,-1887.92,0.00035753,12]
[379158515,1755168677403,-494.19,0.00035753,12]
[379158516,1755168677413,-1216.16,0.00035753,12]
[379158517,1755168677423,-714.63,0.00035753,12]
[379158518,1755168677433,-400.0,0.00035753,12]
[379158519,1755168677443,-568.68,0.00035753,12]
[379158520,1755168677452,-400.0,0.00035753,12]
[379158521,1755168677462,-400.0,0.00035753,12]
[379158522,1755168677472,-400.0,0.00035753,12]
[379158523,1755168677482,-2455.93,0.00035753,12]
[379158524,1755168677492,-1430.12,0.00035753,12]
[379158525,1755168677502,-1177.95,0.00035753,12]
[379158526,1755168677512,-400.0,0.00035753,12]
[379158527,1755168677522,-400.0,0.00035753,12]
[379158528,1755168677536,-1655.24,0.00035753,12]
[379158529,1755168677546,-3459.13,0.00035753,12]
[379158530,1755168677556,-964.89,0.00035753,12]
[379158531,1755168677566,-1158.41,0.00035753,12]
[379158532,1755168677576,-5599.9,0.00035753,12]
[379158533,1755168677586,-400.0,0.00035753,12]
[379158534,1755168677595,-1414.27,0.00035753,12]
[379158535,1755168677606,-400.0,0.00035753,12]
[379158536,1755168677616,-424.96,0.00035753,12]
[379158537,1755168677626,-1125.55,0.00035753,12]
[379158538,1755168677636,-4567.46,0.00035753,12]
[379158539,1755168677646,-400.0,0.00035753,12]
[379158540,1755168677655,-320.59153476,0.00035753,12]
[379158541,1755168677666,-400.0,0.00035753,12]
[379158542,1755168677676,-442.42,0.00035753,12]
[379158543,1755168677686,-400.0,0.00035753,12]
[379158544,1755168677696,-400.0,0.00035753,12]
[379158545,1755168677706,-2157.99,0.00035753,12]
[379158546,1755168677715,-400.0,0.00035753,12]
[379158547,1755168677725,-400.0,0.00035753,12]
[379158548,1755168677735,-400.0,0.00035753,12]
[379158549,1755168677744,-400.0,0.00035753,12]
[379158550,1755168677754,-3678.72,0.00035753,12]
[379158551,1755168677764,-3205.52,0.00035753,12]
[379158552,1755168677774,-2882.79,0.00035753,12]
[379158553,1755168677788,-400.0,0.00035753,12]
[379158554,1755168677798,-400.0,0.00035753,12]
[379158555,1755168677809,-2197.22,0.00035753,12]
[379158556,1755168677819,-2701.64,0.00035753,12]
[379158557,1755168677830,-3179.81,0.00035753,12]
[379158558,1755168678206,-400.0,0.00035753,12]
[379158559,1755168678229,-2601.55,0.00035753,12]
[379158560,1755168678239,-197.60455942,0.00035753,12]
[379158561,1755168678249,-400.0,0.00035753,12]
[379158562,1755168678259,-3071.68,0.00035753,12]
[379158563,1755168678268,-400.0,0.00035753,12]
[379158564,1755168678278,-3437.49,0.00035753,12]
[379158565,1755168678290,-400.0,0.00035753,12]
[379158566,1755168678300,-758.51,0.00035753,12]
[379158567,1755168678310,-409.66183507,0.00035753,12]
[379158568,1755168678320,-1736.37,0.00035753,12]
[379158569,1755168678330,-3567.5,0.00035753,12]
[379158570,1755168678340,-1406.12,0.00035753,12]
[379158571,1755168678351,-442.78,0.00035753,12]
[379158572,1755168678362,-595.65,0.00035753,12]
[379158573,1755168678372,-400.0,0.00035753,12]
[379158574,1755168678381,-5502.69,0.00035753,12]
[379158575,1755168678391,-2853.99,0.00035753,12]
[379158576,1755168678402,-400.0,0.00035753,12]
[379158577,1755168678412,-702.14,0.00035753,12]
[379158578,1755168678422,-2654.93,0.00035753,12]
[379158579,1755168678431,-400.0,0.00035753,12]
[379158580,1755168678441,-400.0,0.00035753,12]
[379158581,1755168678451,-2682.8,0.00035753,12]
[379158583,1755168678460,-400.0,0.00035753,12]
[379158584,1755168678470,-422.65,0.00035753,12]
[379158585,1755168678479,-1241.41,0.00035753,12]
[379158586,1755168678489,-4082.52,0.00035753,12]
[379158587,1755168678500,-400.0,0.00035753,12]
[379158588,1755168678510,-3093.38,0.00035753,12]
[379158589,1755168678520,-400.0,0.00035753,12]
[379158590,1755168678531,-3769.03,0.00035753,12]
[379158591,1755168678540,-400.0,0.00035753,12]
[379158592,1755168678550,-3844.3,0.00035753,12]
[379158593,1755168678560,-400.0,0.00035753,12]
[379158594,1755168678570,-400.0,0.00035753,12]
[379158595,1755168678580,-1127.03,0.00035753,12]
[379158596,1755168678590,-400.0,0.00035753,12]